bitfinex-derivatives/quotes_BTCF0:USTF0_20251030
["timestamp","ask_amount","ask_price","bid_price","bid_amount"]
[1761799303501,0.36088287,109200.0,109190.0,0.00011107]
[1761799303502,0.95309065,109200.0,109190.0,0.00011107]
[1761799304108,0.95109065,109200.0,109190.0,0.00011107]
[1761799304509,0.60298287,109200.0,109190.0,0.00011107]
[1761799305111,0.95109065,109200.0,109190.0,0.00011107]
[1761799305402,0.97109065,109200.0,109190.0,0.00011107]
[1761799305602,0.95109065,109200.0,109190.0,0.00011107]
[1761799305993,0.70899065,109200.0,109190.0,0.24415107]
[1761799306911,0.95109065,109200.0,109190.0,0.00011107]
[1761799307094,0.99109065,109200.0,109190.0,0.00011107]
[1761799307297,0.95109065,109200.0,109190.0,0.00011107]
[1761799307705,0.36088287,109200.0,109190.0,0.12284107]
[1761799308310,0.60298287,109200.0,109190.0,0.00011107]
[1761799309697,1.00206287,109200.0,109190.0,0.00011107]
[1761799310309,1.32206287,109200.0,109190.0,0.00011107]
[1761799310606,0.2421,109190.0,109180.0,0.00276]
[1761799310804,1.25100778,109190.0,109180.0,0.00276]
[1761799311000,0.2421,109180.0,109170.0,0.00332821]
[1761799311200,1.2919,109180.0,109170.0,0.00332821]
[1761799311404,1.8919,109180.0,109170.0,0.00332821]
[1761799311607,0.2421,109150.0,109140.0,1.5]
[1761799311814,0.95109586,109150.0,109140.0,1.5]
[1761799311997,0.82678586,109150.0,109130.0,0.06533992]
[1761799312308,0.58800958,109140.0,109130.0,0.08168248]
[1761799312499,0.96692958,109140.0,109130.0,1.58168248]
[1761799312697,0.96692958,109140.0,109130.0,1.5]
[1761799312901,0.96692958,109140.0,109130.0,1.56541344]
[1761799313101,0.73972,109140.0,109130.0,1.56541344]
[1761799313301,0.98182,109140.0,109130.0,1.56541344]
[1761799313494,0.98182,109140.0,109130.0,1.56641344]
[1761799314007,0.98182,109140.0,109130.0,0.001]
[1761799314212,0.73972,109140.0,109130.0,0.31046503]
[1761799314415,1.04393,109140.0,109130.0,0.06642348]
[1761799314594,1.36399577,109140.0,109130.0,0.001]
[1761799314796,1.40399577,109140.0,109130.0,0.001]
[1761799315207,0.2421,109130.0,109120.0,0.02138791]
[1761799315503,0.97111816,109130.0,109120.0,0.02138791]
[1761799315703,0.95111816,109130.0,109120.0,0.02138791]
[1761799316002,0.36091038,109130.0,109120.0,0.26542791]
[1761799316211,0.36091038,109130.0,109120.0,0.33085139]
[1761799316712,0.00011038,109130.0,109120.0,0.42249599]
[1761799316903,0.00011038,109130.0,109120.0,0.35707251]
[1761799317413,0.00011038,109130.0,109120.0,0.71787251]
[1761799317711,0.3608,109150.0,109140.0,0.4101478]
[1761799317908,0.73952,109160.0,109150.0,0.24404]
[1761799318109,0.3608,109160.0,109150.0,0.24404]
[1761799318310,0.3608,109160.0,109150.0,0.30949641]
[1761799318607,0.3608,109170.0,109150.0,0.30949641]
[1761799318812,0.3608,109180.0,109160.0,0.0916111]
[1761799319017,9.189e-05,109170.0,109160.0,0.6964511]
[1761799319311,9.189e-05,109170.0,109160.0,0.76190751]
[1761799319899,9.189e-05,109170.0,109160.0,2.26190751]
[1761799320303,0.95109967,109170.0,109160.0,1.56545641]
[1761799320815,0.36089189,109170.0,109160.0,1.5916111]
[1761799320997,9.189e-05,109170.0,109160.0,2.02062751]
[1761799321200,9.189e-05,109170.0,109160.0,2.01786751]
[1761799321400,9.189e-05,109170.0,109160.0,1.9524111]
[1761799321621,0.3608,109190.0,109180.0,0.24404]
[1761799321919,0.12431,109180.0,109170.0,0.07448]
[1761799322097,0.12431,109180.0,109160.0,0.065592]
[1761799322098,0.2421,109170.0,109160.0,0.065592]
[1761799322302,0.2421,109160.0,109150.0,0.065592]
[1761799322500,0.6029,109160.0,109150.0,0.065592]
[1761799322699,0.3608,109160.0,109150.0,0.909632]
[1761799322912,0.3608,109160.0,109150.0,0.309632]
[1761799323211,0.3608,109170.0,109160.0,0.24404]
[1761799323416,0.3608,109170.0,109160.0,0.309632]
[1761799323612,0.48511,109170.0,109160.0,0.309632]
[1761799323911,0.6029,109170.0,109160.0,0.065592]
[1761799324113,0.2421,109160.0,109150.0,0.065592]
[1761799324314,0.95100778,109160.0,109150.0,0.065592]
[1761799324615,0.3608,109170.0,109160.0,0.22354]
[1761799324818,0.3608,109170.0,109160.0,0.28921602]
[1761799325411,0.02165128,109170.0,109160.0,0.22354]
[1761799325718,0.001,109170.0,109160.0,0.22354]
[1761799325905,0.3618,109170.0,109160.0,0.22354]
[1761799326325,0.38344449,109170.0,109160.0,0.22354]
[1761799326509,0.3608,109170.0,109160.0,0.22354]
[1761799326710,0.3608,109170.0,109160.0,0.3151511]
[1761799326906,0.85696,109180.0,109170.0,0.11667]
[1761799327120,1.23940504,109180.0,109150.0,1.9524157]
[1761799327319,0.3608,109170.0,109150.0,1.5]
[1761799327520,0.3608,109170.0,109160.0,0.11667]
[1761799327813,0.73892,109180.0,109160.0,0.22354]
[1761799328020,0.3608,109170.0,109160.0,0.22354]
[1761799330707,0.3828782,109170.0,109160.0,0.22354]
[1761799331110,0.0220782,109170.0,109160.0,0.22354]
[1761799331310,0.73892,109180.0,109160.0,0.29229]
[1761799331517,0.76098703,109180.0,109160.0,0.29229]
[1761799331810,0.76098703,109180.0,109170.0,0.22354]
[1761799332009,0.38286703,109180.0,109170.0,0.82354]
[1761799332316,0.60733703,109180.0,109170.0,0.22354]
[1761799332620,0.60733703,109180.0,109170.0,0.11667]
[1761799332819,0.10664,109170.0,109160.0,0.06875]
[1761799333005,0.46744,109170.0,109160.0,0.17582]
[1761799333201,0.91940778,109170.0,109150.0,1.5]
[1761799333516,0.94146785,109170.0,109150.0,1.5]
[1761799334307,0.38286007,109170.0,109160.0,0.27847]
[1761799334708,0.3608,109170.0,109160.0,0.27847]
[1761799335018,0.48949583,109170.0,109160.0,0.27847]
[1761799335315,0.59335583,109170.0,109160.0,0.10707]
[1761799335711,0.59435583,109170.0,109160.0,0.10707]
[1761799336421,0.2105,109160.0,109140.0,0.07448]
[1761799336611,0.46744,109160.0,109150.0,0.21736]
[1761799337005,0.91940778,109170.0,109160.0,0.27847]
[1761799337211,0.94146316,109170.0,109160.0,0.10707]
[1761799337612,0.76013538,109170.0,109160.0,0.27847]
[1761799337822,0.97063538,109170.0,109160.0,0.27847]
[1761799338021,1.31974316,109170.0,109140.0,1.93528]
[1761799338217,0.3608,109160.0,109140.0,1.93528]
[1761799338524,0.46744,109160.0,109150.0,0.21736]
[1761799339224,0.5713,109160.0,109150.0,0.21736]
[1761799339429,0.5713,109160.0,109140.0,1.93528]
[1761799339924,0.5713,109160.0,109140.0,2.0269079]
[1761799340124,0.5933654,109160.0,109140.0,2.0269079]
[1761799340317,0.5933654,109160.0,109150.0,0.21736]
[1761799340515,0.5933654,109160.0,109150.0,0.21486]
[1761799340821,0.5713,109160.0,109150.0,0.21486]
[1761799341221,0.2105,109150.0,109140.0,1.93528]
[1761799341523,0.48364,109150.0,109140.0,1.93528]
[1761799341729,0.9483,109150.0,109140.0,1.57448]
[1761799341909,1.31640778,109150.0,109120.0,0.18177671]
[1761799342116,0.5713,109130.0,109120.0,0.30749791]
[1761799342417,1.31632778,109130.0,109120.0,0.02138791]
[1761799342622,1.29632778,109130.0,109120.0,0.02138791]
[1761799343122,0.91940778,109130.0,109120.0,0.02138791]
[1761799343331,1.29628778,109130.0,109120.0,0.02138791]
[1761799343522,0.5713,109130.0,109120.0,0.29985791]
[1761799343713,0.46744,109140.0,109130.0,0.10707]
[1761799343914,0.10664,109140.0,109130.0,0.21736]
[1761799344131,0.10664,109140.0,109130.0,0.10707]
[1761799344132,0.94806,109140.0,109130.0,0.10707]
[1761799344316,0.94806,109140.0,109120.0,0.08449791]
[1761799344516,0.3608,109130.0,109120.0,0.19156791]
[1761799344716,0.5713,109130.0,109120.0,0.19156791]
[1761799344916,0.5713,109130.0,109120.0,0.29985791]
[1761799345117,0.5713,109130.0,109120.0,0.02138791]
[1761799345724,0.5713,109130.0,109120.0,0.02238791]
[1761799345921,0.46744,109130.0,109120.0,0.29112791]
[1761799346215,0.46744,109130.0,109100.0,8.106e-05]
[1761799346216,0.20354,109110.0,109100.0,8.106e-05]
[1761799346420,1.30174,109110.0,109100.0,8.106e-05]
[1761799346626,0.56434,109110.0,109100.0,0.09891106]
[1761799346924,0.47555,109110.0,109100.0,0.26058106]
[1761799347135,0.37656,109110.0,109100.0,0.26058106]
[1761799347326,0.37652,109110.0,109100.0,0.16132106]
[1761799347632,0.47551,109110.0,109100.0,0.26358106]
[1761799347930,0.58006,109110.0,109100.0,0.20117106]
[1761799348128,1.28896778,109110.0,109100.0,8.106e-05]
[1761799348335,1.28996778,109110.0,109100.0,8.106e-05]
[1761799349032,1.28892778,109110.0,109100.0,8.106e-05]
[1761799349333,1.28884778,109110.0,109100.0,8.106e-05]
[1761799349532,0.91244778,109110.0,109100.0,8.106e-05]
[1761799349737,1.28884778,109110.0,109100.0,8.106e-05]
[1761799349932,1.28880778,109110.0,109100.0,0.19817106]
[1761799350442,1.28880778,109110.0,109100.0,8.106e-05]
[1761799350933,0.9407,109110.0,109100.0,8.106e-05]
[1761799351132,1.28880778,109110.0,109100.0,8.106e-05]
[1761799351439,1.28980778,109110.0,109100.0,8.106e-05]
[1761799352445,0.738,109110.0,109100.0,0.26058106]
[1761799352631,0.001,109110.0,109100.0,0.71304246]
[1761799353234,0.001,109110.0,109100.0,0.26058106]
[1761799353636,0.20454,109110.0,109100.0,0.19817106]
[1761799354038,0.94042,109110.0,109100.0,8.106e-05]
[1761799354236,0.94142,109110.0,109100.0,8.106e-05]
[1761799355044,0.94042,109110.0,109100.0,8.106e-05]
[1761799355236,0.94142,109110.0,109100.0,8.106e-05]
[1761799355546,1.28952778,109110.0,109100.0,8.106e-05]
[1761799356041,0.03763,109100.0,109060.0,0.152805]
[1761799356237,0.3608,109080.0,109060.0,0.06111]
[1761799356431,0.70890778,109080.0,109060.0,0.12678602]
[1761799356632,0.3608,109080.0,109060.0,0.26684]
[1761799356947,0.57849,109080.0,109070.0,0.10257]
[1761799357140,0.5785896,109080.0,109070.0,0.10257]
[1761799357341,0.10051,109070.0,109060.0,0.06111]
[1761799357535,0.10051,109070.0,109060.0,0.26684]
[1761799357934,0.10051,109070.0,109060.0,0.26784]
[1761799359346,0.7367396,109080.0,109060.0,0.26784]
[1761799359846,0.5635496,109080.0,109070.0,0.10257]
[1761799360040,0.9392296,109080.0,109070.0,0.10257]
[1761799360247,0.9391896,109080.0,109060.0,0.06211]
[1761799360443,0.9391896,109080.0,109060.0,0.26784]
[1761799360444,0.7365396,109080.0,109060.0,0.26784]
[1761799360845,0.20265,109070.0,109060.0,0.26784]
[1761799361039,0.7365396,109080.0,109060.0,0.26784]
[1761799361040,9.96e-05,109080.0,109070.0,0.2974153]
[1761799361238,0.3756596,109080.0,109070.0,0.56653]
[1761799361749,0.3756596,109080.0,109070.0,0.20573]
[1761799361948,0.9391096,109080.0,109070.0,0.20573]
[1761799362156,0.20265,109070.0,109060.0,0.26784]
[1761799362446,0.9391096,109080.0,109070.0,0.20573]
[1761799362646,0.8369696,109080.0,109070.0,0.20573]
[1761799362844,0.9391096,109080.0,109070.0,0.20573]
[1761799363443,0.96134085,109080.0,109070.0,0.20573]
[1761799364849,0.39789085,109080.0,109070.0,0.2974165]
[1761799365251,0.3756596,109080.0,109070.0,0.2974165]
[1761799365550,9.96e-05,109080.0,109070.0,0.6582165]
[1761799365752,9.96e-05,109080.0,109070.0,0.86913453]
[1761799366052,9.96e-05,109080.0,109070.0,0.6582165]
[1761799366356,9.96e-05,109080.0,109070.0,0.86913453]
[1761799367138,0.3608,109110.0,109100.0,0.20573]
[1761799367342,0.75805411,109110.0,109100.0,0.26945]
[1761799367548,0.96070411,109110.0,109100.0,0.26945]
[1761799368455,0.96070411,109110.0,109100.0,0.20573]
[1761799369652,0.96170411,109110.0,109100.0,0.20573]
[1761799370157,0.87090411,109110.0,109100.0,0.20573]
[1761799370759,0.20265,109100.0,109090.0,0.20573]
[1761799370962,0.79382214,109100.0,109090.0,0.20573]
[1761799371160,0.58566411,109100.0,109090.0,0.20573]
[1761799371454,0.12272411,109100.0,109090.0,0.2973994]
[1761799371656,0.12272411,109100.0,109090.0,0.6581994]
[1761799371855,0.12272411,109100.0,109090.0,0.2973994]
[1761799372160,0.05884,109140.0,109130.0,0.10257]
[1761799372161,0.02943178,109140.0,109130.0,0.10257]
[1761799372349,0.01676832,109160.0,109150.0,0.20573]
[1761799372660,0.01676832,109160.0,109150.0,2.5189493]
[1761799373442,0.06301544,109190.0,109180.0,0.10257]
[1761799373652,0.63197347,109210.0,109180.0,0.7218435]
[1761799373853,0.20265,109180.0,109170.0,0.3608]
[1761799374057,0.20265,109180.0,109160.0,0.3608]
[1761799374058,0.83007803,109180.0,109160.0,0.3608]
[1761799374257,0.20265,109180.0,109160.0,0.5161301]
[1761799374450,0.41080803,109180.0,109160.0,0.42452]
[1761799374857,0.57705,109180.0,109160.0,0.42452]
[1761799375158,0.20265,109170.0,109150.0,1.8608]
[1761799375362,0.20265,109170.0,109160.0,0.56653]
[1761799375856,0.20265,109160.0,109150.0,1.8608]
[1761799376062,0.20265,109160.0,109150.0,1.9524199]
[1761799376252,0.20265,109160.0,109150.0,1.8608]
[1761799376448,0.57689,109160.0,109150.0,1.8608]
[1761799376658,0.84351803,109160.0,109150.0,1.8608]
[1761799377961,0.57689,109160.0,109150.0,1.8608]
[1761799378351,0.47475,109160.0,109150.0,1.8608]
[1761799378655,0.78604803,109160.0,109150.0,1.8608]
[1761799379457,0.57789,109160.0,109150.0,1.8608]
[1761799380063,0.37524,109160.0,109150.0,1.8608]
[1761799380363,0.37524,109160.0,109150.0,1.9524198]
[1761799380560,0.20365,109160.0,109150.0,1.8608]
[1761799381348,0.41456803,109160.0,109150.0,1.5]
[1761799381549,0.41456803,109160.0,109140.0,0.3608]
[1761799381550,0.20265,109150.0,109140.0,0.3608]
[1761799381861,0.20265,109140.0,109130.0,0.56653]
[1761799382074,0.57629,109150.0,109130.0,1.8608]
[1761799382255,0.10051,109150.0,109140.0,0.56653]
[1761799382454,0.3736,109150.0,109140.0,0.63025]
[1761799382860,0.3746,109150.0,109140.0,0.63025]
[1761799383064,0.001,109150.0,109140.0,0.63025]
[1761799383263,0.20365,109150.0,109140.0,0.63025]
[1761799383455,0.20365,109150.0,109140.0,0.46337]
[1761799383656,0.20365,109150.0,109140.0,0.3608]
[1761799384058,0.22538554,109150.0,109130.0,1.8608]
[1761799384456,0.22438554,109150.0,109130.0,1.8608]
[1761799384662,0.22538554,109150.0,109130.0,1.8608]
[1761799385062,0.22538554,109150.0,109140.0,0.10257]
[1761799385260,0.22438554,109150.0,109140.0,0.10257]
[1761799385464,0.22538554,109150.0,109140.0,0.10257]
[1761799385671,0.22538554,109150.0,109130.0,1.8608]
[1761799386054,0.22438554,109150.0,109130.0,1.8608]
[1761799386259,0.22538554,109150.0,109130.0,1.8608]
[1761799386673,0.56256,109140.0,109130.0,1.8608]
[1761799386975,0.58429554,109140.0,109130.0,1.8608]
[1761799387169,0.86983357,109140.0,109130.0,1.5]
[1761799387675,0.58429554,109140.0,109130.0,1.5]
[1761799387965,0.02173554,109140.0,109130.0,2.06895803]
[1761799388274,0.61962,109140.0,109130.0,1.5]
[1761799388466,0.66135554,109140.0,109130.0,1.5]
[1761799388673,0.66235554,109140.0,109130.0,1.5]
[1761799388874,0.60497554,109140.0,109130.0,1.5]
[1761799389078,0.66235554,109140.0,109130.0,1.5]
[1761799389464,0.1892,109120.0,109100.0,0.42459038]
[1761799389668,0.99465554,109120.0,109100.0,0.42459038]
[1761799389871,0.1892,109110.0,109100.0,7.038e-05]
[1761799390067,0.21093554,109110.0,109100.0,1.69596038]
[1761799390469,0.21093554,109110.0,109100.0,1.75337038]
[1761799390470,0.0966,109110.0,109100.0,1.75337038]
[1761799390777,0.1892,109110.0,109100.0,0.19596038]
[1761799390972,0.1892,109110.0,109100.0,7.038e-05]
[1761799391172,0.39735803,109110.0,109100.0,7.038e-05]
[1761799391381,0.1892,109110.0,109100.0,7.038e-05]
[1761799392083,0.39735803,109110.0,109100.0,7.038e-05]
[1761799392284,0.94249404,109110.0,109100.0,7.038e-05]
[1761799392483,0.94249404,109110.0,109060.0,0.74567914]
[1761799392484,1.01589404,109110.0,109060.0,0.3608]
[1761799392691,0.1892,109070.0,109060.0,1.69589]
[1761799392888,0.56184,109070.0,109060.0,2.05669]
[1761799393581,0.56190496,109070.0,109060.0,2.05669]
[1761799394291,0.56190496,109070.0,109060.0,2.05769]
[1761799395380,0.37250496,109070.0,109060.0,2.11466]
[1761799395577,6.496e-05,109070.0,109060.0,2.11466]
[1761799395885,0.37250496,109070.0,109060.0,2.92281803]
[1761799396084,6.496e-05,109070.0,109060.0,2.92281803]
[1761799396290,6.496e-05,109070.0,109060.0,2.71466]
[1761799396676,6.496e-05,109070.0,109060.0,2.11466]
[1761799396882,0.37242496,109070.0,109060.0,2.11466]
[1761799397282,0.37934496,109070.0,109060.0,2.11466]
[1761799397586,0.37934496,109070.0,109060.0,2.32281803]
[1761799397587,0.37930496,109070.0,109060.0,2.32281803]
[1761799397990,0.00706496,109070.0,109060.0,2.11466]
[1761799398385,0.3608,109130.0,109110.0,0.18147]
[1761799398681,0.38238159,109130.0,109120.0,0.23844]
[1761799398885,0.02158159,109130.0,109120.0,0.23844]
[1761799399277,0.3722,109140.0,109130.0,0.18147]
[1761799399486,0.39378106,109140.0,109130.0,0.18147]
[1761799400498,0.40578106,109140.0,109130.0,0.54327]
[1761799400691,0.03358106,109140.0,109130.0,0.54327]
[1761799400887,0.39458106,109140.0,109130.0,0.54227]
[1761799401086,0.40454106,109140.0,109130.0,0.6349061]
[1761799401289,0.03258106,109140.0,109130.0,0.6349061]
[1761799402000,0.011,109140.0,109130.0,0.6349061]
[1761799402498,0.001,109140.0,109130.0,0.6339061]
[1761799402699,0.011,109140.0,109130.0,0.6349061]
[1761799403097,0.001,109140.0,109130.0,0.6339061]
[1761799403398,0.011,109140.0,109130.0,0.6339061]
[1761799404192,0.01,109140.0,109130.0,0.6339061]
[1761799405100,0.01,109140.0,109130.0,1.21638413]
[1761799406296,0.0013,109160.0,109150.0,0.18147]
[1761799406487,0.0013,109160.0,109150.0,0.6338895]
[1761799406882,0.24585,109160.0,109150.0,0.3608]
[1761799407106,1.02054803,109160.0,109140.0,0.09125]
[1761799407403,0.75457803,109150.0,109130.0,0.3608]
[1761799407591,0.75457803,109150.0,109130.0,0.54227]
[1761799407592,0.37132,109140.0,109130.0,0.54227]
[1761799407789,0.3608,109150.0,109140.0,0.23844]
[1761799407996,0.3608,109150.0,109140.0,0.3300674]
[1761799408299,0.3608,109150.0,109140.0,0.3328274]
[1761799408501,0.3608,109150.0,109140.0,0.3300674]
[1761799408703,0.3608,109150.0,109140.0,0.23844]
[1761799409107,0.3608,109150.0,109140.0,0.330068]
[1761799409486,0.3658,109150.0,109140.0,0.330068]
[1761799409899,0.3668,109150.0,109140.0,0.330068]
[1761799410090,0.3648,109150.0,109140.0,0.330068]
[1761799410492,0.3638,109150.0,109140.0,0.330068]
[1761799410693,0.3638,109150.0,109140.0,0.23844]
[1761799410996,0.45445,109150.0,109140.0,0.23844]
[1761799411192,0.54942,109150.0,109140.0,0.23844]
[1761799412101,0.18562,109140.0,109130.0,0.54227]
[1761799412301,0.76461803,109140.0,109130.0,0.54227]
[1761799412694,0.82354803,109140.0,109130.0,0.3608]
[1761799413098,0.84354803,109140.0,109130.0,0.3608]
[1761799413303,0.82854803,109140.0,109130.0,0.3608]
[1761799413603,0.82954803,109140.0,109130.0,0.3608]
[1761799413906,0.84954803,109140.0,109130.0,0.3608]
[1761799414105,0.82954803,109140.0,109130.0,0.3608]
[1761799414308,0.82854803,109140.0,109130.0,0.3608]
[1761799414602,0.83054803,109140.0,109130.0,0.3608]
[1761799414999,0.84554803,109140.0,109130.0,0.3608]
[1761799415310,0.85430803,109140.0,109130.0,0.3608]
[1761799416607,0.85430803,109140.0,109090.0,0.46231735]
[1761799416608,0.09447,109100.0,109090.0,0.18220245]
[1761799416912,0.3704,109100.0,109090.0,0.18220245]
[1761799419013,0.3704,109100.0,109090.0,0.18320245]
[1761799419707,0.37012,109110.0,109100.0,0.1423175]
[1761799420011,0.37012,109110.0,109100.0,0.3244275]
[1761799420711,0.54839,109110.0,109100.0,0.23277]
[1761799421206,0.54839,109110.0,109100.0,0.18211]
[1761799421408,0.17827,109100.0,109090.0,0.18320245]
[1761799421604,0.75654803,109110.0,109100.0,0.18211]
[1761799421806,0.17827,109110.0,109100.0,0.18211]
[1761799422011,0.54819,109110.0,109100.0,0.23277]
[1761799422306,0.20945803,109130.0,109100.0,0.23277]
[1761799422512,0.05893,109140.0,109110.0,0.18211]
[1761799422513,0.17957,109120.0,109110.0,0.18211]
[1761799422711,0.17827,109110.0,109100.0,0.18211]
[1761799422915,0.17827,109100.0,109090.0,0.18220245]
[1761799423099,0.54811,109100.0,109090.0,0.18220245]
[1761799424417,0.57207756,109120.0,109110.0,0.09644]
[1761799424606,0.94187756,109120.0,109110.0,0.09644]
[1761799424807,0.55037,109120.0,109110.0,0.18211]
[1761799425012,0.18057,109120.0,109110.0,0.18211]
[1761799425417,0.55021,109120.0,109110.0,0.18211]
[1761799425619,0.54917,109120.0,109110.0,0.18211]
[1761799426206,0.46537,109120.0,109110.0,0.18211]
[1761799426411,0.3719,109120.0,109110.0,0.18211]
[1761799426611,0.0023,109120.0,109110.0,0.2737624]
[1761799426813,0.0023,109120.0,109110.0,0.18211]
[1761799427015,0.0023,109120.0,109110.0,0.2737623]
[1761799428108,0.0013,109120.0,109110.0,0.2775223]
[1761799428312,0.0013,109120.0,109110.0,0.2747623]
[1761799428527,0.0013,109120.0,109110.0,0.18311]
[1761799429114,0.0013,109120.0,109110.0,0.18211]
[1761799429318,0.17957,109120.0,109110.0,0.18211]
[1761799430018,0.17827,109110.0,109100.0,0.23277]
[1761799431411,0.09577,109120.0,109110.0,0.09644]
[1761799431612,0.17957,109120.0,109110.0,0.18211]
[1761799432025,0.17957,109120.0,109110.0,0.09644]
[1761799432414,0.17957,109120.0,109110.0,0.18211]
[1761799432615,0.18057,109120.0,109110.0,0.18211]
[1761799433011,0.0023,109120.0,109110.0,0.18211]
[1761799433923,0.18057,109120.0,109110.0,0.18211]
[1761799434124,0.17827,109110.0,109100.0,0.23277]
[1761799434522,0.54699,109110.0,109100.0,0.18211]
[1761799435029,0.36872,109110.0,109100.0,0.3244308]
[1761799435729,0.54699,109110.0,109100.0,0.23277]
[1761799437525,0.54699,109110.0,109100.0,0.3244313]
[1761799437729,0.17827,109110.0,109100.0,0.3244313]
[1761799438028,0.54667,109110.0,109100.0,0.3244313]
[1761799438236,0.3684,109110.0,109100.0,0.3244313]
[1761799438421,0.0013,109120.0,109110.0,0.18211]
[1761799438422,0.54793,109120.0,109110.0,0.18211]
[1761799439327,0.54781,109120.0,109110.0,0.18211]
[1761799440631,0.54881,109120.0,109110.0,0.18211]
[1761799441226,0.54881,109120.0,109110.0,0.09644]
[1761799442021,0.54881,109120.0,109110.0,0.18211]
[1761799442415,0.54853,109120.0,109110.0,0.18211]
[1761799442932,0.54849,109120.0,109110.0,0.18211]
[1761799443232,0.54845,109120.0,109110.0,0.18211]
[1761799443531,0.18057,109120.0,109110.0,0.18211]
[1761799443729,0.54837,109120.0,109110.0,0.18211]
[1761799443932,0.17827,109110.0,109100.0,0.23277]
[1761799444325,0.17827,109110.0,109100.0,0.18211]
[1761799444515,0.17827,109110.0,109100.0,0.09644]
[1761799444722,0.22162,109100.0,109090.0,9.245e-05]
[1761799444925,0.93681756,109100.0,109090.0,9.245e-05]
[1761799445425,0.98681756,109100.0,109090.0,9.245e-05]
[1761799445727,0.95681756,109100.0,109090.0,9.245e-05]
[1761799445934,0.93681756,109100.0,109090.0,9.245e-05]
[1761799446722,0.54365,109100.0,109090.0,0.16961245]
[1761799447127,0.93661756,109100.0,109090.0,9.245e-05]
[1761799447429,0.95661756,109100.0,109090.0,9.245e-05]
[1761799447624,0.93661756,109100.0,109090.0,9.245e-05]
[1761799447825,0.08912,109070.0,109060.0,0.1473585]
[1761799448025,0.22536,109060.0,109050.0,0.06567602]
[1761799448232,0.57413756,109060.0,109050.0,0.06567602]
[1761799448540,0.17613,109050.0,109040.0,0.06567602]
[1761799448733,0.18733,109040.0,109030.0,1.58168248]
[1761799448938,0.18733,109040.0,109030.0,1.5]
[1761799449237,0.18733,109040.0,109030.0,1.56584897]
[1761799449533,0.55465,109040.0,109030.0,0.06584897]
[1761799449931,0.54345,109040.0,109030.0,0.23536897]
[1761799450131,0.18883,109040.0,109030.0,0.06584897]
[1761799450432,0.18883,109040.0,109030.0,0.15381897]
[1761799450622,0.54533,109040.0,109030.0,0.15381897]
[1761799450822,0.17813,109040.0,109030.0,0.23536897]
[1761799451034,0.19183,109040.0,109030.0,0.06584897]
[1761799451934,0.68887,109040.0,109030.0,0.06584897]
[1761799452232,0.17613,109020.0,109010.0,0.25120248]
[1761799452442,0.08922534,109020.0,109010.0,1.66952]
[1761799452629,0.00010534,109020.0,109010.0,1.66952]
[1761799452931,0.17107534,109020.0,109010.0,1.66952]
[1761799453133,0.17107534,109020.0,109010.0,0.16952]
[1761799453332,0.08922534,109020.0,109010.0,0.16952]
[1761799453537,0.08922534,109020.0,109010.0,0.17052]
[1761799453741,0.08922534,109020.0,109010.0,0.18345342]
[1761799454038,0.17107534,109020.0,109010.0,0.18345342]
[1761799454227,0.17107534,109020.0,109010.0,0.24915293]
[1761799455038,0.17107534,109020.0,109010.0,0.18345342]
[1761799455435,0.17107534,109020.0,109010.0,0.01393342]
[1761799455637,0.9280529,109020.0,109010.0,0.005]
[1761799455840,1.2308129,109020.0,109010.0,0.005]
[1761799456941,0.9680529,109020.0,109010.0,0.004]
[1761799457235,0.20484,109000.0,108990.0,0.06567279]
[1761799457541,0.5537229,109000.0,108990.0,0.06567279]
[1761799457935,0.16475534,109000.0,108990.0,0.14884279]
[1761799458135,0.20652534,109000.0,108990.0,0.06567279]
[1761799458640,0.20452534,109000.0,108990.0,0.06567279]
[1761799459041,0.20452534,109000.0,108990.0,0.06967279]
[1761799459337,0.5115329,109000.0,108990.0,0.23250279]
[1761799459545,0.5513029,109000.0,108990.0,0.06967279]
[1761799459834,0.5713029,109000.0,108990.0,0.06967279]
[1761799460146,0.6013029,109000.0,108990.0,0.005]
[1761799461643,0.16465,108990.0,108980.0,0.00011447]
[1761799461841,0.56351107,108990.0,108980.0,0.00011447]
[1761799462031,0.04765,108980.0,108940.0,0.1507519]
[1761799462237,0.16465,108960.0,108950.0,0.16283]
[1761799462432,0.16465,108960.0,108950.0,0.6208171]
[1761799462836,0.0828,108960.0,108950.0,0.6208171]
[1761799463043,0.51342756,108970.0,108960.0,0.2131]
[1761799463343,0.5135324,108970.0,108960.0,0.16283]
[1761799464141,0.5135324,108970.0,108960.0,0.3048784]
[1761799464343,0.08290484,108970.0,108960.0,0.2131]
[1761799464541,0.08290484,108970.0,108960.0,0.2141]
[1761799464743,0.08290484,108970.0,108960.0,0.3058784]
[1761799465547,0.00010484,108970.0,108960.0,0.6747984]
[1761799466145,0.16465,108990.0,108980.0,0.2131]
[1761799466443,0.51342756,108990.0,108980.0,0.16283]
[1761799466844,0.04144,109020.0,108980.0,0.2131]
[1761799467034,0.5135055,109010.0,109000.0,0.08317]
[1761799467232,0.16465,109000.0,108990.0,0.16283]
[1761799467446,0.51342756,109000.0,108990.0,0.16283]
[1761799467640,0.51342756,109000.0,108990.0,0.08317]
[1761799467847,0.0828,108990.0,108980.0,0.4992]
[1761799468034,0.16465,108990.0,108980.0,0.2131]
[1761799468342,0.51342756,108990.0,108980.0,0.57878]
[1761799468532,0.16465,108990.0,108980.0,0.57874]
[1761799468934,0.003,108990.0,108980.0,0.6705005]
[1761799469129,0.003,108990.0,108980.0,0.6732605]
[1761799469849,0.004,108990.0,108980.0,0.6732605]
[1761799470145,0.004,108990.0,108980.0,0.6705005]
[1761799470335,0.004,108990.0,108980.0,0.6732605]
[1761799470535,0.001,108990.0,108980.0,0.6732605]
[1761799470834,0.002,108990.0,108980.0,0.6732605]
[1761799471030,0.0033,108990.0,108980.0,0.6732605]
[1761799471451,7.794e-05,109010.0,109000.0,0.3048446]
[1761799471630,0.08287794,109010.0,109000.0,0.2131]
[1761799471947,7.794e-05,109010.0,109000.0,0.6702046]
[1761799472140,0.16472794,109010.0,109000.0,0.57846]
[1761799472533,7.794e-05,109010.0,109000.0,0.6702045]
[1761799473150,0.16472794,109010.0,109000.0,0.6702045]
[1761799473334,7.794e-05,109010.0,109000.0,0.6702045]
[1761799473649,0.00307794,109010.0,109000.0,0.6702045]